bitfinex/quotes_ETHUSD_20240916
["timestamp","ask_amount","ask_price","bid_price","bid_amount"]
[1726530080626,6.28604,2301.0,2300.6,2.4897573]
[1726530080920,10.6321,2301.0,2300.6,2.4897573]
[1726530081122,8.6921,2301.0,2300.6,2.4897573]
[1726530081597,8.69208,2301.0,2300.6,2.4897573]
[1726530083195,4.34612,2300.9,2300.6,2.4897573]
[1726530089831,4.34632,2300.8,2300.6,2.4897573]
[1726530091188,4.3465,2300.7,2300.6,2.4897573]
[1726530103558,4.3465,2300.7,2300.6,3.75962403]
[1726530104483,4.3465,2300.7,2300.6,3.75964538]
[1726530105542,4.3465,2300.7,2300.6,2.4897573]
[1726530105866,1.94,2300.9,2300.7,2.3959]
[1726530106239,1.94,2300.9,2300.8,0.2388002]
[1726530106435,1.94,2300.9,2300.8,3.66549861]
[1726530106665,1.94,2300.9,2300.8,3.90429881]
[1726530108284,1.94,2300.9,2300.8,2.6347002]
[1726530110114,6.28612,2300.9,2300.8,2.6347002]
[1726530110427,1.94,2300.9,2300.8,3.90392194]
[1726530110635,3.0,2301.1,2300.8,3.90392194]
[1726530110924,3.0,2301.1,2300.8,2.6347002]
[1726530111486,7.34575,2301.1,2300.8,2.6347002]
[1726530115640,3.0,2301.1,2300.8,2.6347002]
[1726530116837,7.388239,2301.4,2301.2,2.445]
[1726530117136,7.388239,2301.4,2301.3,16.111333]
[1726530117435,2.3455,2302.0,2301.6,2.445]
[1726530117436,7.388239,2302.0,2301.6,2.445]
[1726530117640,2.3455,2302.2,2301.7,5.91206355]
[1726530117860,9.733739,2302.4,2301.8,2.445]
[1726530118003,5.7107159,2302.3,2301.8,2.445]
[1726530118200,5.7107159,2302.3,2301.9,0.23670506]
[1726530118424,5.7107159,2302.3,2301.8,2.445]
[1726530118619,1.97878449,2302.2,2302.0,0.23654839]
[1726530118828,1.97878449,2302.2,2301.9,0.23670506]
[1726530118999,4.97878449,2302.2,2302.1,0.23639174]
[1726530119201,4.97878449,2302.2,2302.0,0.23654839]
[1726530119401,4.97878449,2302.2,2302.1,0.23639174]
[1726530119837,1.97878449,2302.2,2302.1,0.23555187]
[1726530120038,7.34351,2302.3,2302.1,0.23555187]
[1726530120699,4.34367,2302.2,2302.1,0.23555187]
[1726530120900,7.34367,2302.2,2302.1,0.23555187]
[1726530121303,9.62237,2302.2,2301.8,2.3487]
[1726530121607,1.168716,2302.1,2301.8,2.3487]
[1726530122206,5.512576,2302.1,2301.8,2.3487]
[1726530124549,7.34367,2302.2,2301.8,2.3487]
[1726530124715,10.62678,2302.4,2302.0,2.4999]
[1726530124921,4.34352,2302.3,2302.0,2.4999]
[1726530125309,6.28338,2302.4,2302.0,2.4999]
[1726530125310,10.62685,2302.4,2302.0,2.4999]
[1726530125645,6.28338,2302.4,2302.0,2.4999]
[1726530125815,10.62677,2302.4,2302.0,2.4999]
[1726530126627,6.28338,2302.4,2302.0,2.4999]
[1726530126956,10.62678,2302.4,2302.0,2.4999]
[1726530127238,6.28338,2302.4,2302.0,2.4999]
[1726530127442,6.28338,2302.4,2302.1,0.23584036]
[1726530128222,4.34338,2302.4,2302.1,0.23584036]
[1726530129062,8.68678,2302.4,2302.1,0.23584036]
[1726530129402,8.68677,2302.4,2302.1,0.23584036]
[1726530131159,4.3435,2302.3,2302.1,0.23584036]
[1726530133635,4.34367,2302.2,2302.1,0.23584036]
[1726530134123,4.34387,2302.1,2301.8,2.3711]
[1726530136313,4.34407,2302.0,2301.8,2.3711]
[1726530136556,4.34415,2302.0,2301.8,2.3711]
[1726530138889,4.34415,2302.0,2301.9,0.23617236]
[1726530140161,4.34387,2302.1,2301.9,0.23617236]
[1726530140760,4.34387,2302.1,2301.8,2.3711]
[1726530140984,4.34367,2302.2,2302.0,0.23599046]
[1726530141274,6.28363,2302.3,2301.8,2.3711]
[1726530141471,6.28363,2302.3,2302.2,2.3344]
[1726530141787,1.94,2302.3,2302.2,2.57006782]
[1726530142636,1.94,2302.8,2302.2,2.57006782]
[1726530142872,8.68538,2302.8,2302.3,3.39922268]
[1726530143186,8.68538,2302.8,2302.4,0.23535458]
[1726530143343,4.34268,2302.8,2302.4,0.23535458]
[1726530143689,4.34268,2302.8,2302.5,2.3344]
[1726530143977,4.34268,2302.8,2302.6,0.23504139]
[1726530143978,5.10888479,2302.8,2302.6,0.23504139]
[1726530145776,4.34268,2302.8,2302.6,0.23504139]
[1726530146986,6.320639,2302.9,2302.6,0.23504139]
[1726530148255,4.34254,2302.8,2302.6,0.23504139]
[1726530150445,6.63604,2302.8,2302.6,0.23504139]
[1726530150991,10.97868,2302.8,2302.6,0.23504139]
[1726530151286,10.97871,2302.8,2302.6,0.23504139]
[1726530151446,6.63604,2302.8,2302.6,0.23504139]
[1726530151782,4.34254,2302.8,2302.6,0.23504139]
[1726530154454,8.68525,2302.8,2302.6,0.23504139]
[1726530154764,5.4442389,2302.8,2302.6,0.23504139]
[1726530154946,5.4442389,2302.8,2302.3,3.84817548]
[1726530155146,8.68522,2302.8,2302.7,0.23445519]
[1726530155384,8.68522,2302.8,2302.3,3.84817548]
[1726530155588,4.34254,2302.8,2302.7,0.23445519]
[1726530156045,4.34254,2302.8,2302.3,3.84817548]
[1726530156243,4.34274,2302.7,2302.3,3.84817548]
[1726530156459,4.34254,2302.8,2302.4,0.23492495]
[1726530157407,8.68519,2302.8,2302.4,0.23492495]
[1726530157760,4.34276,2302.7,2302.4,0.23492495]
[1726530165216,8.6862,2302.5,2302.4,0.23492495]
[1726530165420,4.34356,2302.3,2302.0,2.2833]
[1726530166017,4.34356,2302.3,2302.1,0.22750499]
[1726530166183,8.68716,2302.3,2302.1,0.22750499]
[1726530167617,4.34367,2302.2,2302.1,0.22750499]
[1726530172716,8.68718,2302.3,2302.1,0.22750499]
[1726530172923,4.34356,2302.3,2302.1,0.22750499]
[1726530173215,8.68716,2302.3,2302.1,0.22750499]
[1726530174814,4.34356,2302.3,2302.1,0.22750499]
[1726530175687,8.68717,2302.3,2302.1,0.22750499]
[1726530175916,4.34367,2302.2,2302.1,0.22750499]
[1726530189136,4.34367,2302.2,2302.1,1.4944466]
[1726530189508,4.34351,2302.3,2302.1,1.4944466]
[1726530189713,4.34351,2302.3,2302.1,0.22750499]
[1726530190020,1.94,2302.5,2302.2,1.56827548]
[1726530190235,6.28318,2302.5,2302.3,2.4083]
[1726530190538,6.28318,2302.5,2302.4,0.22725679]
[1726530193241,4.34318,2302.5,2302.4,0.22725679]
[1726530200240,4.34303,2302.6,2302.4,0.22725679]
[1726530203082,8.68606,2302.6,2302.4,0.22725679]
[1726530203243,4.34303,2302.6,2302.4,0.22725679]
[1726530206733,4.34273,2302.7,2302.4,0.22725679]
[1726530206979,6.320689,2302.9,2302.4,6.22557797]
[1726530207185,0.038239,2302.9,2302.6,5.91116548]
[1726530207340,0.038239,2302.9,2302.8,3.96117548]
[1726530207544,0.038239,2302.9,2302.8,4.18763662]
[1726530208434,0.038239,2302.9,2302.8,5.45423417]
[1726530208639,0.038239,2302.9,2302.8,5.78580633]
[1726530208885,0.038239,2302.9,2302.8,3.88595869]
[1726530209046,0.038239,2302.9,2302.8,5.78583513]
[1726530209239,0.038239,2302.9,2302.8,5.78582693]
[1726530209470,0.038239,2302.9,2302.8,3.88595869]
[1726530209676,0.038239,2302.9,2302.8,3.88556675]
[1726530210587,0.038239,2302.9,2302.8,2.61936114]
[1726530211483,0.038239,2302.9,2302.8,0.22646114]
[1726530211695,4.380589,2302.9,2302.8,0.22646114]
[1726530211991,4.380589,2302.9,2302.8,0.22635648]
[1726530212199,4.380589,2302.9,2302.6,3.82277548]
[1726530212489,4.380589,2302.9,2302.8,0.22635648]
[1726530212692,4.380589,2302.9,2302.7,0.22651304]
[1726530212848,4.380589,2302.9,2302.8,0.22635648]
[1726530213247,4.380589,2302.9,2302.6,3.82277548]
[1726530213543,4.380589,2302.9,2302.8,0.22635648]
[1726530213991,8.723029,2302.9,2302.6,3.82277548]
[1726530214294,8.723029,2302.9,2302.8,0.22635648]
[1726530214295,4.380589,2302.9,2302.8,0.22635648]
[1726530214453,4.380589,2302.9,2302.7,0.22651304]
[1726530214795,4.380589,2302.9,2302.8,0.22635648]
[1726530214991,4.380589,2302.9,2302.6,3.82277548]
[1726530215154,4.380589,2302.9,2302.8,0.22635648]
[1726530215465,4.380589,2302.9,2302.6,3.82277548]
[1726530215664,4.380589,2302.9,2302.8,0.22635648]
[1726530215893,4.380589,2302.9,2302.7,0.22651304]
[1726530216089,4.380589,2302.9,2302.8,0.22635648]
[1726530216389,4.380589,2302.9,2302.6,3.82277548]
[1726530216585,4.380589,2302.9,2302.8,0.22622718]
[1726530216892,4.380589,2302.9,2302.6,3.82277548]
[1726530217103,8.723039,2302.9,2302.6,3.82277548]
[1726530217249,4.380589,2302.9,2302.7,0.22638374]
[1726530219993,0.038239,2302.9,2302.7,0.22638374]
[1726530220192,0.038239,2302.9,2302.8,1.56827548]
[1726530220402,0.038239,2302.9,2302.8,1.79450266]
[1726530220558,0.038239,2302.9,2302.8,4.15824412]
[1726530220888,0.038239,2302.9,2302.8,4.07140266]
[1726530225347,0.038239,2302.9,2302.8,2.50312718]
[1726530225547,4.380589,2302.9,2302.8,0.22622718]
[1726530225839,4.380589,2302.9,2302.6,3.98017548]
[1726530226137,4.380589,2302.9,2302.8,0.2261841]
[1726530226338,4.380589,2302.9,2302.7,0.2262822]
[1726530226545,4.380589,2302.9,2302.8,0.22612564]
[1726530226840,4.380589,2302.9,2302.6,3.98017548]
[1726530227027,4.380589,2302.9,2302.8,0.22612564]
[1726530227366,4.380589,2302.9,2302.6,3.98017548]
[1726530227529,4.380589,2302.9,2302.8,0.22612564]
[1726530227530,8.723049,2302.9,2302.8,0.22612564]
[1726530227843,4.34258,2302.8,2302.6,3.98017548]
[1726530228848,4.34258,2302.8,2302.7,0.22629759]
[1726530233552,8.6852,2302.8,2302.7,0.22629759]
[1726530233754,11.8886439,2302.8,2302.7,0.22629759]
[1726530233971,11.8886439,2302.8,2302.2,4.01417548]
[1726530233972,4.34342,2302.4,2302.2,4.01417548]
[1726530234255,4.34342,2302.4,2302.3,4.0]
[1726530234989,4.34342,2302.4,2302.3,1.26583972]
[1726530235122,4.34342,2302.4,2302.2,4.01417548]
[1726530237355,4.34348,2302.3,2302.1,2.47148924]
[1726530237520,4.34348,2302.3,2302.2,3.16528573]
[1726530237924,4.34348,2302.3,2302.2,1.26613114]
[1726530238849,4.34348,2302.3,2302.2,3.1653484]
[1726530240279,4.34348,2302.3,2302.2,3.16537652]
[1726530241739,4.34348,2302.3,2302.2,1.26615061]
[1726530242440,4.34348,2302.3,2302.0,4.76558924]
[1726530242748,4.34348,2302.3,2302.1,3.16591026]
[1726530243055,4.34348,2302.3,2302.0,4.76558924]
[1726530243235,4.34348,2302.3,2302.1,3.16590745]
[1726530243440,4.34348,2302.3,2302.0,4.76558924]
[1726530243697,4.34348,2302.3,2302.2,0.22723446]
[1726530243867,4.34348,2302.3,2302.2,1.56827548]
[1726530244052,4.34348,2302.3,2302.2,3.06179395]
[1726530244777,4.34348,2302.3,2302.2,4.96121124]
[1726530244981,6.74831,2302.5,2302.2,4.96121124]
[1726530244982,4.3433,2302.4,2302.2,4.96121124]
[1726530245279,4.3433,2302.4,2302.2,1.79550994]
[1726530253873,4.3433,2302.4,2302.3,1.26626408]
[1726530254201,4.3433,2302.4,2302.3,1.49336962]
[1726530254987,4.3433,2302.4,2302.3,1.49341825]
[1726530258304,4.3433,2302.4,2302.3,1.49358929]
[1726530258471,4.34311,2302.5,2302.3,1.49358929]
[1726530258802,4.34311,2302.5,2302.3,0.22710554]
[1726530258972,4.34311,2302.5,2302.2,1.56827548]
[1726530259309,4.34311,2302.5,2302.3,1.49374015]
[1726530259611,4.34311,2302.5,2302.3,0.22724405]
[1726530259975,4.34296,2302.6,2302.2,1.56827548]
[1726530260174,4.34296,2302.6,2302.4,0.22708744]
[1726530260373,8.68597,2302.6,2302.5,0.22693084]
[1726530260703,8.68597,2302.6,2302.2,1.56827548]
[1726530260900,4.34296,2302.6,2302.5,0.22693084]
[1726530261074,5.459267,2302.6,2302.2,1.56827548]
[1726530261274,4.34296,2302.6,2302.5,0.22693084]
[1726530261503,4.34296,2302.6,2302.2,1.56827548]
[1726530261806,4.34296,2302.6,2302.5,0.22693084]
[1726530261991,4.34296,2302.6,2302.2,1.56827548]
[1726530262191,4.34296,2302.6,2302.3,1.4938451]
[1726530262505,4.34296,2302.6,2302.2,1.56827548]
[1726530262714,4.34296,2302.6,2302.4,0.22708744]
[1726530263003,4.34296,2302.6,2302.3,0.22724405]
[1726530263209,4.34296,2302.6,2302.5,0.22693084]
[1726530263515,6.81986,2302.7,2302.3,6.78018]
[1726530263684,2.4771,2302.7,2302.5,0.22693084]
[1726530263874,2.4771,2302.7,2302.4,0.22708744]
[1726530265006,2.4771,2302.7,2302.4,4.57027744]
[1726530265206,2.4771,2302.7,2302.4,6.13855292]
[1726530265632,4.34254,2302.8,2302.4,6.22540851]
[1726530267581,6.820289,2302.9,2302.4,6.22535851]
[1726530267780,6.820289,2302.9,2302.5,5.60970259]
[1726530267980,6.820289,2302.9,2302.5,4.3431]
[1726530268180,6.820289,2302.9,2302.6,0.2267527]
[1726530268813,6.820289,2302.9,2302.4,5.99841107]
[1726530268976,6.820289,2302.9,2302.5,1.26681041]
[1726530269184,8.1305489,2302.9,2302.5,0.22690929]
[1726530269486,2.477939,2302.9,2302.5,4.56982929]
[1726530269996,2.477939,2302.9,2302.6,1.26685735]
[1726530270317,2.477939,2302.9,2302.7,0.22659613]
[1726530270681,2.477939,2302.9,2302.5,4.34292]
[1726530270882,2.477939,2302.9,2302.6,1.49379593]
[1726530271095,2.477939,2302.9,2302.6,0.2267527]
[1726530277839,2.477939,2302.9,2302.7,1.26786696]
[1726530278003,2.477939,2302.9,2302.6,0.2267527]
[1726530278314,2.477939,2302.9,2302.7,0.2265592]
[1726530278701,2.477939,2302.9,2302.5,5.24613376]
[1726530278902,2.477939,2302.9,2302.6,3.39690627]
[1726530279103,2.477939,2302.9,2302.7,1.2680762]
[1726530279304,2.477939,2302.9,2302.8,0.22640264]
[1726530279939,2.477939,2302.9,2302.5,5.24613376]
[1726530280145,6.820289,2302.9,2302.8,0.22640264]
[1726530280443,6.820289,2302.9,2302.5,5.24613376]
[1726530280607,9.820289,2302.9,2302.8,0.22640264]
[1726530280802,9.820289,2302.9,2302.5,5.24613376]
[1726530281009,9.820289,2302.9,2302.8,0.22640264]
[1726530281251,9.820289,2302.9,2302.5,5.24613376]
[1726530281425,9.820289,2302.9,2302.6,9.08104006]
[1726530281426,2.477939,2302.9,2302.6,9.08104006]
[1726530281711,2.477939,2302.9,2302.8,1.56827548]
[1726530281712,0.038239,2302.9,2302.8,1.56827548]
[1726530282117,0.038239,2302.9,2302.8,4.96400564]
[1726530287550,0.038239,2302.9,2302.8,3.06148506]
[1726530287923,0.038239,2302.9,2302.8,4.96173687]
[1726530288124,0.038239,2302.9,2302.8,3.06148506]
[1726530288776,0.038239,2302.9,2302.8,4.96164399]
[1726530288909,0.038239,2302.9,2302.8,1.49320958]
[1726530297271,0.038239,2302.9,2302.8,1.49303852]
[1726530301035,0.038239,2302.9,2302.8,1.49314562]
[1726530301627,0.7029599,2302.9,2302.8,1.49314562]
[1726530301843,2.357039,2302.9,2302.8,0.22637185]
[1726530302163,2.357039,2302.9,2302.5,5.24623376]
[1726530302375,2.357039,2302.9,2302.4,3.636687]
[1726530302376,4.34273,2302.7,2302.4,0.90321376]
[1726530302524,2.2743,2302.6,2302.4,1.56827548]
[1726530302870,2.2743,2302.6,2302.3,2.47148924]
[1726530303068,2.2743,2302.6,2302.4,3.16481129]
[1726530303271,2.2743,2302.6,2302.3,6.81496924]
[1726530303456,2.2743,2302.6,2302.4,1.26475886]
[1726530303821,2.2743,2302.6,2302.5,0.21908218]
[1726530304262,2.2743,2302.6,2302.3,2.47148924]
[1726530304469,2.2743,2302.6,2302.5,0.21908218]
[1726530304642,2.2743,2302.6,2302.4,0.21923878]
[1726530304973,2.2743,2302.6,2302.5,0.21908218]
[1726530305269,2.2743,2302.6,2302.3,2.47148924]
[1726530305446,2.2743,2302.6,2302.5,0.21908218]
[1726530305645,2.2743,2302.6,2302.4,0.21923878]
[1726530305846,2.2743,2302.6,2302.5,0.21908218]
[1726530306553,2.2743,2302.6,2302.3,2.47148924]
[1726530306745,2.2743,2302.6,2302.5,0.21908218]
[1726530307266,2.2743,2302.6,2302.3,2.47148924]
[1726530307445,2.2743,2302.6,2302.4,3.16489466]
[1726530307656,2.2743,2302.6,2302.4,0.21923878]
[1726530309246,2.2743,2302.6,2302.5,1.56827548]
[1726530309446,6.74854,2302.8,2302.5,3.05371698]
[1726530309647,6.74854,2302.8,2302.5,1.78735766]
[1726530314091,2.406,2302.8,2302.5,1.78735766]
[1726530314469,6.74855,2302.8,2302.5,1.78735766]
[1726530316972,6.74855,2302.8,2302.5,0.21908218]
[1726530317171,8.0554759,2302.8,2302.5,0.21908218]
[1726530318306,2.3267,2302.7,2302.5,0.21908218]
[1726530318674,2.3267,2302.7,2302.6,0.21898039]
[1726530319091,2.3267,2302.7,2302.3,11.15826924]
[1726530319293,2.3267,2302.7,2302.6,0.21898039]
[1726530319482,0.038239,2302.9,2302.7,2.3685]
[1726530319690,7.426478,2303.6,2303.5,4.34121]
[1726530319917,0.038239,2303.6,2303.5,5.90948548]
[1726530320086,0.038239,2303.6,2303.5,14.53451925]
[1726530320414,0.038239,2303.6,2303.5,13.63124352]
[1726530320570,0.038239,2303.6,2303.5,9.29003352]
[1726530321273,0.038239,2303.6,2303.5,7.39042216]
[1726530321695,0.038239,2303.6,2303.5,14.06253216]
[1726530321900,0.038239,2303.6,2303.5,21.60631289]
[1726530322215,0.038239,2303.6,2303.5,21.5195039]
[1726530322400,0.038239,2303.6,2303.5,19.03308694]
[1726530322716,0.038239,2303.6,2303.5,20.83375609]
[1726530323019,0.038239,2303.6,2303.5,22.8152558]
[1726530323201,0.038239,2303.6,2303.5,21.40787114]
[1726530323513,0.038239,2303.6,2303.5,5.48093668]
[1726530323717,0.038239,2303.6,2303.5,4.21764786]
[1726530324073,6.706869,2303.6,2303.5,4.21764786]
[1726530324304,7.8116409,2303.6,2303.5,0.21764786]
[1726530324715,7.8116409,2303.6,2303.0,12.62683548]
[1726530325005,4.34134,2303.5,2302.9,0.90047003]
[1726530325216,4.34169,2303.3,2303.1,0.21009385]
[1726530325372,4.34169,2303.3,2302.8,6.71111]
[1726530325373,4.34169,2303.3,2303.0,0.21038287]
[1726530325573,8.68271,2303.5,2303.2,0.21006984]
[1726530325806,4.34141,2303.4,2303.1,0.21022635]
[1726530326077,4.3414,2303.4,2303.2,0.21006984]
[1726530326302,4.3414,2303.4,2302.8,6.71111]
[1726530326476,4.34169,2303.3,2302.8,6.71111]
[1726530326688,4.3418,2303.2,2302.9,0.21065989]
[1726530327010,2.2869,2303.2,2302.9,0.21065989]
[1726530328814,6.6287,2303.4,2302.9,0.21065989]
[1726530328990,6.6287,2303.4,2302.9,4.55298989]
[1726530329811,10.97025,2303.4,2302.9,4.55298989]
[1726530330313,3.0,2303.5,2303.0,7.73794728]
[1726530330617,7.34125,2303.5,2303.1,0.21035889]
[1726530333224,3.0,2303.5,2303.1,0.21035889]
[1726530334118,6.745159,2303.6,2303.4,3.39585728]
[1726530334119,0.038239,2303.6,2303.4,3.39585728]
[1726530334318,0.038239,2304.3,2304.1,4.33996]
[1726530334523,0.038239,2304.3,2304.2,5.85829714]
[1726530334742,0.038239,2304.3,2304.2,2.46243986]
[1726530334968,0.038239,2304.3,2304.2,6.80233986]
[1726530335167,0.038239,2304.3,2304.2,2.54922852]
[1726530335323,0.038239,2304.3,2304.2,2.46243986]
[1726530335522,0.038239,2304.3,2304.2,2.54922866]
[1726530336622,0.038239,2304.3,2304.2,6.88912866]
[1726530336824,0.038239,2304.3,2304.2,6.80233986]
[1726530341175,0.038239,2304.3,2304.2,15.08809714]
[1726530341545,0.015,2304.4,2304.3,9.22942]
[1726530341744,0.015,2304.4,2304.3,9.43810351]
[1726530342158,0.015,2304.4,2304.3,16.77781351]
[1726530342362,0.015,2304.4,2304.3,14.69290351]
[1726530343975,0.015,2304.4,2304.3,18.69290351]
[1726530349076,0.015,2304.4,2304.3,10.80319351]
[1726530349655,0.015,2304.4,2304.3,4.20868351]
[1726530349874,0.015,2304.4,2304.3,8.54839351]
[1726530351947,0.015,2304.4,2304.3,4.54839351]
[1726530352152,0.015,2304.4,2304.3,8.88810351]
[1726530355155,0.015,2304.4,2304.3,12.88810351]
[1726530357694,11.726829,2304.9,2304.4,4.33943]
[1726530357898,4.33859,2304.9,2304.4,4.33943]
[1726530358075,4.33859,2304.9,2304.5,0.20743451]
[1726530359596,4.33859,2304.9,2304.5,4.54673451]
[1726530359896,3.43222112,2304.9,2304.5,4.54673451]
[1726530360403,3.43222112,2304.9,2304.5,0.20743451]
[1726530363588,3.43222112,2304.9,2304.5,4.54675451]
[1726530365177,11.083829,2305.0,2304.5,4.54675451]
[1726530365377,2.406739,2305.0,2304.6,4.33902]
[1726530365579,2.406739,2305.0,2304.7,0.20704968]
[1726530365905,0.039039,2305.0,2304.7,0.20704968]
[1726530366068,0.039039,2305.0,2304.8,2.3479]
[1726530366416,0.039039,2305.0,2304.9,0.20673712]
[1726530366581,2.3802,2305.4,2304.9,8.89065533]
[1726530366781,0.038239,2305.7,2305.4,2.455]
[1726530366965,0.038239,2305.7,2305.5,0.20579976]
[1726530367166,0.038239,2305.7,2305.5,4.54324976]
[1726530367420,0.038239,2305.7,2305.5,0.20579976]
[1726530367767,0.038239,2305.7,2305.2,6.77464]
[1726530367963,4.33738,2305.6,2305.3,0.20610313]
[1726530368171,2.3321,2305.5,2305.0,4.33828]
[1726530368377,2.3321,2305.5,2305.1,0.20627423]
[1726530368378,4.33765,2305.4,2305.1,0.20627423]
[1726530368605,4.33765,2305.4,2304.8,6.7754]
[1726530368821,0.59725462,2305.3,2305.2,0.206118]
[1726530369111,0.59725462,2305.3,2304.6,4.33904]
[1726530369112,6.66993,2305.3,2304.6,4.33904]
[1726530369269,6.66993,2305.3,2305.2,0.20605786]
[1726530369611,7.770679,2305.3,2305.2,0.20605786]
[1726530369828,7.770679,2305.3,2304.8,4.33873]
[1726530369970,7.770679,2305.3,2305.2,0.20605786]
[1726530370167,7.770679,2305.3,2304.8,4.33873]
[1726530370168,5.0509019,2305.7,2304.9,2.3505]
[1726530370367,3.0,2305.6,2305.0,3.60222762]
[1726530370612,7.33738,2305.6,2305.0,4.54458034]
[1726530372889,4.33745,2305.5,2305.0,4.54458034]
[1726530373424,6.678069,2305.7,2305.0,4.54458034]
[1726530373572,2.340939,2305.7,2305.0,7.94048762]
[1726530373777,4.33726,2305.6,2305.0,8.88289034]
[1726530374010,6.678179,2305.7,2305.0,4.54463034]
[1726530374218,6.678179,2305.7,2305.2,4.33801]
[1726530374515,6.678179,2305.7,2305.0,4.54463034]
[1726530374516,11.015369,2305.7,2305.0,8.88287034]
[1726530374719,4.33748,2305.5,2305.3,0.20593772]
[1726530375018,4.33748,2305.5,2305.0,4.33824]
[1726530375019,4.33748,2305.5,2305.4,0.20578151]
[1726530375438,4.33748,2305.5,2305.0,4.33824]
[1726530375622,4.33748,2305.5,2305.4,0.20578151]
[1726530375835,4.33748,2305.5,2305.0,4.33824]
[1726530376000,4.33748,2305.5,2305.4,0.20559805]
[1726530376332,4.33748,2305.5,2305.0,4.33824]
[1726530376638,8.67504,2305.5,2305.0,4.33824]
[1726530376793,4.33748,2305.5,2305.1,0.20606671]
[1726530377796,4.33793,2305.3,2305.1,0.20606671]
[1726530377996,4.33793,2305.3,2304.7,2.2536]
[1726530378311,4.33793,2305.3,2304.8,0.20653549]
[1726530378810,4.33836,2305.1,2304.9,0.20640026]
[1726530379117,4.33836,2305.1,2304.6,8.67797]
[1726530379326,4.33836,2305.1,2305.0,0.206244]
[1726530379495,4.33836,2305.1,2304.6,5.23945003]
[1726530379698,4.33836,2305.1,2305.0,0.206244]
[1726530380024,4.33836,2305.1,2304.6,5.23945003]
[1726530380244,4.33836,2305.1,2304.5,3.15407003]
[1726530380245,6.59524,2305.0,2304.5,3.15407003]
[1726530380545,6.59524,2305.0,2304.6,3.12200903]
[1726530380739,6.59524,2305.0,2304.5,5.23970003]
[1726530380911,6.59524,2305.0,2304.6,3.12210158]
[1726530381118,2.2567,2305.0,2304.7,1.24887437]
[1726530381442,2.2567,2305.0,2304.6,5.23960003]
[1726530381644,2.2567,2305.0,2304.7,3.12205735]
[1726530381938,2.2567,2305.0,2304.6,5.23960003]
[1726530382251,2.2567,2305.0,2304.7,3.1220933]
[1726530382540,2.2567,2305.0,2304.8,1.24883732]
[1726530382751,2.2567,2305.0,2304.6,5.23960003]
[1726530383051,2.2567,2305.0,2304.7,3.12242006]
[1726530383253,2.2567,2305.0,2304.8,1.24896802]
[1726530383411,2.2567,2305.0,2304.6,5.23960003]
[1726530383759,6.59513,2305.0,2304.7,3.12298805]
[1726530383911,2.2567,2305.0,2304.8,1.24919522]
[1726530384111,2.2567,2305.0,2304.6,5.23960003]
[1726530384311,2.2567,2305.0,2304.7,3.1232541]
[1726530384533,2.2567,2305.0,2304.6,5.23960003]
[1726530384740,2.2567,2305.0,2304.7,3.1239418]
[1726530384959,2.2567,2305.0,2304.6,5.23960003]
[1726530385124,2.2567,2305.0,2304.7,3.12388913]
[1726530385446,2.2567,2305.0,2304.8,1.2496754]
[1726530385649,2.2567,2305.0,2304.6,5.23951003]
[1726530385849,2.2567,2305.0,2304.7,3.12399685]
[1726530386053,2.2567,2305.0,2304.8,1.24959874]
[1726530386350,2.2567,2305.0,2304.6,5.23951003]
[1726530386525,2.2567,2305.0,2304.7,4.02584036]
[1726530386726,2.2567,2305.0,2304.8,3.12536582]
[1726530386950,2.2567,2305.0,2304.7,0.90047003]
[1726530387155,2.2567,2305.0,2304.8,3.12530541]
[1726530387357,2.2567,2305.0,2304.9,1.25012216]
[1726530387528,2.2567,2305.0,2304.7,0.90047003]
[1726530387715,6.65723,2305.3,2304.8,3.12531893]
[1726530387910,6.65723,2305.3,2304.9,1.25002707]
[1726530388149,4.33773,2305.4,2305.0,2.3621]
[1726530388325,1.94,2305.5,2305.1,7.73390728]
[1726530388523,0.038239,2305.7,2305.3,4.33781]
[1726530389479,4.375349,2305.7,2305.3,4.33781]
[1726530390426,4.375349,2305.7,2305.2,4.33801]
[1726530392763,0.038239,2305.7,2305.1,4.29632731]
[1726530393082,0.038239,2305.7,2305.5,3.39585728]
[1726530393376,0.038239,2305.7,2305.6,17.66811712]
[1726530393577,7.383109,2306.1,2305.9,8.67318]
[1726530393718,2.3353,2306.5,2306.0,3.11909712]
[1726530394166,2.3353,2306.5,2305.8,4.74619371]
[1726530394167,4.33614,2306.2,2306.1,0.20445695]
[1726530394319,6.64134,2306.2,2306.1,0.20445695]
[1726530394613,2.3052,2305.9,2305.4,5.23786429]
[1726530394767,2.3052,2305.9,2305.5,1.24705865]
[1726530394968,6.64192,2305.9,2305.3,5.23800429]
[1726530395167,4.33721,2305.7,2305.2,0.90022429]
[1726530395371,6.77849,2305.6,2305.0,3.23292429]
[1726530395586,6.77849,2305.6,2305.1,1.24731853]
[1726530395818,6.77849,2305.6,2305.0,2.3327]
[1726530396174,6.77849,2305.6,2305.1,1.24737201]
[1726530396371,6.77849,2305.6,2305.0,2.3327]
[1726530398787,6.67849,2305.6,2305.0,2.3327]
[1726530399317,4.33747,2305.5,2304.8,0.90022429]
[1726530399515,4.33783,2305.3,2304.9,3.11909168]
[1726530399723,4.33808,2305.2,2304.7,0.90022429]
[1726530400011,8.6758,2305.3,2304.8,3.1196928]
[1726530400316,8.6758,2305.3,2304.6,7.73489728]
[1726530400317,8.67578,2305.3,2304.6,7.73489728]
[1726530400500,4.33783,2305.3,2304.7,1.2481709]
[1726530400808,8.67578,2305.3,2304.6,7.73489728]
[1726530400999,8.67578,2305.3,2304.7,1.24817585]
[1726530401195,8.67578,2305.3,2304.6,8.63512157]
[1726530401381,8.67578,2305.3,2304.7,3.12058327]
[1726530401615,8.67578,2305.3,2304.6,8.63512157]
[1726530401795,6.81414,2305.2,2304.7,3.12057587]
[1726530402012,6.81414,2305.2,2304.6,8.63512157]
[1726530402211,6.81414,2305.2,2304.7,1.24828763]
[1726530402400,6.81414,2305.2,2304.6,8.63512157]
[1726530402401,2.4761,2305.2,2304.6,8.63512157]
[1726530402600,2.4761,2305.2,2304.7,3.12076653]
[1726530402804,2.4761,2305.2,2304.6,8.63512157]
[1726530403015,2.4761,2305.2,2304.7,3.12076468]